Cogmind - Beta 16.1 @@@ ROGUE MODE // 2026.03.03 @ 16:17:15 // Winter2019/RPGLIKE Player: Jaegerpls Result: Destroyed by RP-S01(R) with Subdweller Machine Gun Performance ------------- Evolutions (0) 0 Regions Visited (2) 400 Robots Destroyed (37) 185 Value Destroyed (1046) 1046 Prototype IDs (0) 0 Alien Tech Used (0) 0 Bonus (0) 0 TOTAL SCORE: 1631 Bonus ------- None Cogmind --------- Core Integrity 0/600 Matter 300/300 Energy 120/125 System Corruption 2% Temperature Cool (0) Movement Rolling (90) Location -10/Subcaves Parts ------- > --- POWER (1) -------- Light Ion Engine > --- PROPULSION (2) --- Armored Wheel Armored Wheel > --- UTILITY (5) ------ Improved Heat Sink Targeting Computer Targeting Computer Scrap Shield > --- WEAPON (2) ------- Barrage Gun Flail > --- INVENTORY (1) ---- (None) Peak State ------------ > --- POWER ------------ Light Ion Engine > --- PROPULSION ------- Armored Wheel Armored Wheel > --- UTILITY ---------- Improved Heat Sink Improved Terrain Scanner Targeting Computer Targeting Computer Makeshift Thermal Plating > --- WEAPON ----------- Flamer Flail > --- INVENTORY -------- Beam Cannon [Rating: 21] Favorites ----------- Power Light Nuclear Core Engine Light Ion Engine Power Core Light Nuclear Core Propulsion Armored Wheel Treads Light Treads Wheel Armored Wheel Utility Targeting Computer Device Improved Heat Sink Processor Targeting Computer Protection Light Armor Plating Weapon Flail Energy Gun Medium Laser Energy Cannon Beam Cannon Ballistic Gun Assault Rifle Special Weapon Flamer Impact Weapon Flail Slashing Weapon Mining Claw Build | -11 -10 -10 ------- Run | Yrd Mat Sub Slots Evolved 6 | 4 2 . Power . | . . . Propulsion 1 | 1 . . Utility 4 | 2 2 . Weapon 1 | 1 . . Parts Attached 23 | 6 11 6 Power 3 | 1 1 1 Engine 2 | 1 . 1 Core 1 | . 1 . Reactor . | . . . Propulsion 4 | 2 2 . Treads 2 | 2 . . Leg . | . . . Wheel 2 | . 2 . Hover . | . . . Flight . | . . . Utility 8 | 1 4 3 Device 2 | 1 1 . Storage . | . . . Processor 2 | . 2 . Hackware . | . . . Protection 4 | . 1 3 Artifact . | . . . Weapon 8 | 2 4 2 Energy Gun 1 | . 1 . Energy Cannon 1 | . 1 . Ballistic Gun 3 | 2 . 1 Ballistic Cannon . | . . . Launcher . | . . . Special Weapon 1 | . . 1 Impact Weapon 1 | . 1 . Slashing Weapon 1 | . 1 . Piercing Weapon . | . . . Special Melee Weapon . | . . . Unidentified Prototypes . | . . . Parts Lost 2 | . . 2 Power 1 | . . 1 Propulsion . | . . . Utility 1 | . . 1 Weapon . | . . . Highest Loss Streak 1 | . . 1 To Critical Strikes . | . . . Average Backups . | . . . Power . | . . . Propulsion . | . . . Utility . | . . . Weapon . | . . . Tool/Special . | . . . Unused Backups . | . . . Power . | . . . Propulsion . | . . . Utility . | . . . Weapon . | . . . Tool/Special . | . . . Average Slot Usage (%) 94 | . 95 93 Engine 3 | . 1 7 Core 6 | . 10 2 Treads 10 | . 18 . Wheel 10 | . 4 20 Device 19 | . 21 15 Processor 14 | . 10 20 Protection 5 | . 4 7 Energy Gun 4 | . 8 . Energy Cannon 2 | . . 3 Ballistic Gun 2 | . 3 1 Special Weapon 2 | . . 5 Impact Weapon 5 | . 2 10 Slashing Weapon 4 | . 7 . Peak Build Rating 21 | 8 18 21 Average Rating 15 | 6 14 18 On Entrance 8 | . 8 18 Avg Prop Armor Cover (%) . | . . . Naked Turns . | . . . Heaviest Build 27 | 8 14 27 Greatest Support 45 | 45 45 29 Greatest Overweight (x) 1 | 1 . . Average Overweight (x) . | . . . Largest Inventory Capacity 1 | 1 1 1 Average Capacity . | . 1 1 Most Carried 1 | . 1 1 Average Carried . | . . . Final Capacity 1 | 1 1 1 Final Carried 1 | . 1 . Class Distribution -------------------- 100% | Mutant Dominant Class ---------------- Mutant | -10/Materials Mutant | -10/Subcaves Resources | -11 -10 -10 ----------- Run | Yrd Mat Sub Matter Collected 740 | 398 200 142 Remotely . | . . . Salvage Created 924 | 211 483 230 Parts 61 | 16 23 22 Haulers Intercepted 2 | . 2 . Recyclers Shooed . | . . . Parts Field Recycled . | . . . Retrieved Matter . | . . . Parts Self-Destructed 1 | . . 1 Prevented . | . . . Parts Restored . | . . . Kills | -11 -10 -10 ------- Run | Yrd Mat Sub Combat Hostiles Destroyed 23 | . 9 14 Melee 4 | . 1 3 Guns 7 | . 7 . Cannons 7 | . . 7 Classes Destroyed 9 | 3 5 1 Worker 3 | 2 1 . Tunneler 5 | 5 . . Hauler 2 | . 2 . Recycler 1 | 1 . . Operator 1 | . 1 . Watcher 2 | . 2 . Swarmer 7 | . 3 4 Grunt 6 | . 6 . Subdweller 10 | . . 10 Best Kill Streak 5 | 5 3 4 Combat Bots Only 4 | . 3 4 Max Kills in Single Turn 2 | 2 1 1 Gunslinging . | . . . Exploded . | . . . Melee 1 | . 1 1 Uniques/NPCs Destroyed . | . . . Combat | -11 -10 -10 -------- Run | Yrd Mat Sub Hostile Shots Fired 158 | . 69 89 Missed 44 | . 22 22 Hits 114 | . 47 67 Projectile 114 | . 47 67 AOE 2 | . . 2 Critical Strikes 2 | . 2 . Damage Taken 1997 | . 544 1453 Core 1385 | . 407 978 Absorbed by Shields . | . . . Redirected to Core 1125 | . 328 797 Ignored by Resistances 16 | . . 16 Core Remaining (%) 100 | 100 . . Volleys Fired 180 | 23 127 30 Largest 2 | 2 2 1 Hottest 100 | 40 60 100 Shots Fired 218 | 46 142 30 Gun 179 | 46 132 1 Cannon 26 | . 10 16 Launcher . | . . . Special 13 | . . 13 Kinetic 77 | 46 30 1 Thermal 141 | . 112 29 Explosive . | . . . Electromagnetic . | . . . Robot Hit Streak 16 | 7 7 16 Robot Miss Streak 3 | 3 2 1 Penetration Max . | . . . Secondary Targets 1 | . 1 . Max Gunslinging Chain 1 | . 1 . Shots Hit Robots 140 | 27 60 53 Core Hits 42 | 9 20 13 Critical Kills . | . . . Critical Parts Destroyed 4 | . 2 2 Critical Strikes 9 | . 5 4 Burn 5 | . 3 2 Smash 4 | . 2 2 Melee Attacks 77 | . 43 34 Impact 54 | . 20 34 Slashing 23 | . 23 . Piercing . | . . . Sneak Attacks 2 | . 1 1 Combat Hostiles 1 | . . 1 Follow-up Attacks . | . . . Damage Inflicted 2876 | 367 1177 1332 Guns 1032 | 367 650 15 Cannons 262 | . 18 244 Explosions 108 | . 108 . Melee 1334 | . 401 933 Ramming . | . . . Kinetic 594 | 367 212 15 Thermal 840 | . 456 384 Explosive 108 | . 108 . Electromagnetic . | . . . Impact 1334 | . 401 933 Slashing . | . . . Piercing . | . . . Highest Corruption 2 | . 2 2 Average Corruption 1 | . 1 2 Corruption Purged . | . . . Corruption Blocked . | . . . Effects 23 | . 4 19 Message Errors 7 | . 1 6 Matter Fused 8 | . 1 7 Heat Flow Errors 2 | . 1 1 Energy Discharges 2 | . . 2 Parts Rejected 1 | . . 1 Data Loss (minor) 2 | . 1 1 Data Loss (major) 1 | . . 1 Overload Shots . | . . . Overflow Damage 309 | . 192 117 Projectiles . | . . . Explosions . | . . . Melee 309 | . 192 117 Knockbacks 7 | . 1 6 Impact 7 | . 1 6 Kinetic . | . . . Secondary . | . . . Self-Inflicted Damage . | . . . Shots . | . . . Rammed . | . . . Targets Rammed . | . . . Kicked . | . . . Crushed . | . . . Highest Temperature 155 | . 143 155 Average Temperature 37 | . 28 73 Received Heat Transfer 474 | . 312 162 Siege Activations . | . . . Martial Activations . | . . . Shielding Activations . | . . . Robots Disrupted . | . . . Combat Hostiles . | . . . Robots Corrupted 6 | . 2 4 Combat Hostiles 5 | . 1 4 Parts Fried 9 | . 4 5 Impact Corruptions 15 | . 8 7 Robots Melted . | . . . Combat Hostiles . | . . . Parts Melted 7 | . 3 4 Heat Transferred 3352 | . 1554 1798 Parts Sabotaged . | . . . Parts Stolen . | . . . Parts Stripped . | . . . Power Chain Reactions . | . . . Alert | -11 -10 -10 ------- Run | Yrd Mat Sub Maximum Alert Level 1 | . 1 . Low Security (%) 87 | 100 86 . Level 1 12 | . 13 . Level 2 . | . . . Level 3 . | . . . Level 4 . | . . . Level 5 . | . . . High Security . | . . . Max Security . | . . . Peak Influence 235 | 10 235 . Initial 3 | . 3 . Average 102 | 2 111 . Influence Increases 903 | 40 708 155 Destroy 0b10 Robot/C 260 | . 180 80 Destroy 0b10 Robot/NC 70 | 40 30 . Destroy Leader 48 | . 48 . Successful Hack 27 | . 27 . Disable Machine 375 | . 375 . Destroy Structure 48 | . 48 . Lose Combat Pursuer 75 | . . 75 Influence Decreases 903 | 35 492 376 Entered New Map 109 | . 2 107 Time Decay 784 | 35 490 259 Lost Part 10 | . . 10 Squads Dispatched 1 | . 1 . Investigation . | . . . Extermination . | . . . Reinforcement 1 | . 1 . Assault . | . . . Garrison . | . . . Intercept . | . . . Searches Triggered . | . . . Construction Impeded . | . . . Haulers Reinforced . | . . . Active Scanning Responses . | . . . Cargo Convoy Interrupts . | . . . Stealth | -11 -10 -10 --------- Run | Yrd Mat Sub Distress Signals . | . . . Communications Jammed . | . . . Distress Signals . | . . . Times Spotted 43 | . 23 20 Peak Tracking Total 6 | . 4 6 Tactical Retreats 4 | . . 4 Traps | -11 -10 -10 ------- Run | Yrd Mat Sub Traps Triggered 6 | . 2 4 Indirectly . | . . . Trap Hack Attempts . | . . . Triggered . | . . . Disarmed . | . . . Reprogrammed . | . . . Reused . | . . . Traps Extracted . | . . . Installed . | . . . Triggered . | . . . Machines | -11 -10 -10 ---------- Run | Yrd Mat Sub Machines Disabled 25 | . 25 . Max in Single Turn 2 | . 2 . Machines Repaired . | . . . Machines Dismantled . | . . . Machines Sabotaged . | . . . Overloaded Fab Kills . | . . . Hacking | -11 -10 -10 --------- Run | Yrd Mat Sub Machines Accessed 10 | . 10 . Terminals 8 | . 8 . Fabricators . | . . . Repair Stations . | . . . Recycling Units 2 | . 2 . Scanalyzers . | . . . Garrison Access . | . . . Total Hacks 27 | . 27 . Successful 14 | . 14 . Failed 13 | . 13 . Catastrophic 2 | . 2 . Database Lockouts . | . . . Manual 23 | . 23 . Terminals 22 | . 22 . Fabricators . | . . . Repair Stations . | . . . Recycling Units 5 | . 5 . Scanalyzers . | . . . Garrison Access . | . . . Terminal Hacks 3 | . 3 . Robot Analysis 2 | . 2 . Alert Level 1 | . 1 . Fabricator Hacks . | . . . Repair Station Hacks . | . . . Recycling Unit Hacks 1 | . 1 . Report Inventory 1 | . 1 . Scanalyzer . | . . . Garrison Access Hacks . | . . . Unauthorized Hacks 10 | . 10 . Terminals 8 | . 8 . Botnet 2 | . 2 . Skim 6 | . 6 . Fabricators . | . . . Repair Stations . | . . . Recycling Units 2 | . 2 . Reject 1 | . 1 . Mask 1 | . 1 . Scanalyzers . | . . . Garrison Access . | . . . Data Cores Recovered . | . . . Used . | . . . Hacking Detections 9 | . 9 . Full Trace Events 1 | . 1 . Feedback Events . | . . . Feedback Blocked . | . . . Robot Schematics Acquired . | . . . Robots Built . | . . . Authchips . | . . . Time . | . . . Total Robot Build Rating . | . . . Part Schematics Acquired . | . . . Parts Built . | . . . Authchips . | . . . Time . | . . . Total Part Build Rating . | . . . Part Studies Acquired . | . . . Parts Repaired . | . . . Time . | . . . Parts Recycled . | . . . Recycled Matter . | . . . Retrieved Matter . | . . . Retrieved Components . | . . . Parts Scanalyzed . | . . . Part Schematics Acquired . | . . . Parts Damaged . | . . . Bothacking | -11 -10 -10 ------------ Run | Yrd Mat Sub Used RIF Installer . | . . . Robots Hacked . | . . . Non-combat . | . . . Combat . | . . . Robot Hacks Applied . | . . . Relay Couplers Released . | . . . Fabnet Peak Effective % . | . . . Robots Rewired . | . . . Allies Hacked . | . . . Hacks Repelled . | . . . Allies | -11 -10 -10 -------- Run | Yrd Mat Sub Total Allies . | . . . Largest Group . | . . . Highest-Rated Group . | . . . Highest-Rated Ally . | . . . Total Orders . | . . . Ally Attacks . | . . . Total Damage . | . . . Kills . | . . . Allies Corrupted . | . . . Allies Melted . | . . . Intel | -11 -10 -10 ------- Run | Yrd Mat Sub Active Infowar (turns) 2421 | 98 1629 694 Terrain 2421 | 98 1629 694 Robot Analysis Total 2 | . 2 . Derelict Logs Recovered 1 | . . 1 Drone Launches . | . . . Drone Recoveries . | . . . Exploration | -11 -10 -10 ------------- Run | Yrd Mat Sub Turns Passed 2990 | 153 1629 1208 Spaces Moved 1549 | 51 843 655 Core 6 | 6 . . Treads 636 | 45 591 . Legs . | . . . Wheels 907 | . 252 655 Hover . | . . . Flight . | . . . Fastest Speed 50 | 50 90 90 Average Speed 118 | 149 139 90 Slowest Speed 160 | 160 160 90 Overloaded Moves . | . . . Propulsion Burnouts . | . . . Robots Hopped . | . . . Potential Cave-ins . | . . . Cave-ins Triggered . | . . . Exploration Rate (%) 53 | 4 99 56 Regions Visited 2 Branch Regions 1 Pre-discovered Areas 1 | . 1 . Known Exits Taken . | . . . Unknown Exits Taken 2 | 1 1 . Scrap Searched 8 | . . 8 Spaces Dug 2 | . 1 1 Terrain Destroyed 68 | . 67 1 Melee 2 | . 1 1 Projectile . | . . . AOE 66 | . 66 . Terrain Rammed . | . . . Walls Destroyed . | . . . Machines Disabled . | . . . Actions | -11 -10 -10 --------- Run | Yrd Mat Sub Total 2330 | 79 1081 1170 Wait 442 | . 40 402 Move 1547 | 50 842 655 Hop . | . . . Pick Up 5 | . 3 2 Fast Attach 19 | 6 9 4 Attach 1 | . . 1 Detach . | . . . Swap 5 | . 2 3 Drop 13 | . 9 4 Fire 180 | 23 127 30 Melee 77 | . 43 34 Ram . | . . . Kick . | . . . Crush . | . . . Escape Stasis . | . . . Rewire . | . . . Trap . | . . . Miscellaneous 41 | . 6 35 Route ------- -11/Scrapyard -10/Materials (discovered 5 exits: [*Mat x3] / [*Min] / [*Sub]) -10/Subcaves (discovered 3 exits: Mat x2 / [*Rec]) History --------- Turn | Location | Event 6 | -11/Scrapyard | Discovered new exit (range 15) 12 | -11/Scrapyard | Upgraded with Propulsion slot (x1) 12 | -11/Scrapyard | Upgraded with Utility slot (x2) 12 | -11/Scrapyard | Upgraded with Weapon slot (x1) 154 | -11/Scrapyard | Entered Materials 205 | -10/Materials | Discovered new exit (range 16) 319 | -10/Materials | Build established: Mutant 492 | -10/Materials | Discovered new exit (range 15) 543 | -10/Materials | Discovered new exit (range 15) 844 | -10/Materials | Reached level 2 845 | -10/Materials | Upgraded with Utility slot (x1) 1172 | -10/Materials | Discovered new exit (range 5) 1434 | -10/Materials | Discovered new exit (range 15) 1615 | -10/Materials | Learned location of Mines (-9) 1642 | -10/Materials | Learned location of 2 exits from Materials 1661 | -10/Materials | Learned Storage trap positions 1696 | -10/Materials | Reached level 3 1703 | -10/Materials | Upgraded with Utility slot (x1) 1709 | -10/Materials | Learned 2 Storage zone layouts 1783 | -10/Materials | Entered Subcaves 1784 | -10/Subcaves | Approached by a straggling Scientist 1784 | -10/Subcaves | Identified exit to Materials 1922 | -10/Subcaves | Learned 2 Materials zone layouts 1985 | -10/Subcaves | Core integrity fell below 50% 2229 | -10/Subcaves | Shifting Twisted Machinery released Slug Cannon 2242 | -10/Subcaves | Shifting Twisted Machinery released Barrage Gun 2437 | -10/Subcaves | Discovered new exit (range 13) 2635 | -10/Subcaves | A swath of the cavern ceiling suddenly collapsed 2908 | -10/Subcaves | A Subdweller sparked back to life 2908 | -10/Subcaves | A Subdweller sparked back to life 2946 | -10/Subcaves | Ambushed by Subdweller buried in earth 2947 | -10/Subcaves | Core integrity fell below 20% 2991 | -10/Subcaves | Destroyed by RP-S01(R) with Subdweller Machine Gun Last Messages --------------- 02916_ System corrupted: Matter fused (-5). 02919_ 1Q-ST4(R) knocked back. 02934_ 1Q-ST4(R) destroyed. 02941_ Scrap Shield Fragment affixed to Scrap Shield (+46). 02944_ Acquired 27 matter. 02945_ Acquired 12 matter. 02947_ BS-A6L(R): "ARGHSUB!" 02948_ JX-J1H(R) knocked back. 02951_ JX-J1H(R) destroyed. 02953_ BS-A6L(R) knocked back. 02964_ Destroyed Sub. Optics. 02964_ BS-A6L(R) system corrupted by crushing effect. 02967_ BS-A6L(R) suffers critical hit (Smash). 02967_ Destroyed Disposable Heat Sink. 02967_ BS-A6L(R) system corrupted by crushing effect. 02967_ BS-A6L(R) knocked back. 02968_ BS-A6L(R) system terminally corrupted. 02968_ Sub. Machine Gun fried. 02968_ Sub. Power Source fried. 02979_ YGSGDVUMB6PQ#5D>3H E1MMQ9CURD/ Map ----- +----------------------------------------------------+ | ????????????????????????????????????????? | | ????????????????????????????????????????? | | ????????????????????????????????????????? | | ????????????????????????????????????????? | | ????????????????????????????????????????? | | ????????????????????????????????????????? | | ????????????????????????????????????????? | | ????????????????????????????????????????? | | ????????????????????????????????????????? | | ???????????????????? ???????????????????? | | ?????????????????? ???????????????????? | | ??????????????????? ???????????????????? | | ??????????????????? ???????????????????? | | ??????????????????? ??????????????????? | | ??????????????????? ??????????????????? | | ???????????????????# ??????????????????? | | ???????????????????# #?????????????????? | | ???????????????????# ?????????????????? | | ???????????????????# #?????????????????? | | ????????????????#### ##????????????????? | | ???????????????## ##???????????????? | | ???????????????# ##??????????????? | | ???????????????? #??????????????? | | ??????????????????# ???????????????? | | ??????????????????# ####?????????????? | | ????????????????### #@#?????????????? | | ???????????????## R##?????????????? | | ??????????????## #?????????????? | | ?????????????##"" ##?????????????? | | ?????????????# " = %##??????????????? | | ?????????????## &% %#???????????????? | | ?????????????# #???????????????? | | ?????????????## ; #???????????????? | | ?????????????# ;; #???????????????? | | ?????????????# #######???????????????? | | ??????????#### ##????????????????????? | | ??##????? ### # ##???????????????????? | | ## ##### # # ####????????????????? | | # ## ##???????????????? | | # #???????????????? | | ### #???????????????? | | #?? ## #???????????????? | | ### #?## #???????????????? | | #??## ##???????????????? | | ##??# ##????????????????? | | ##???# ##?????????????????? | | ##???# ##??????????????????? | | ##??# ###???????????????????? | | ##?# ##?????????????????????? | | ### ##?????????????????????? | +----------------------------------------------------+ Best States ------------- Heat Dissipation 45 Energy Generation 14 Energy Capacity 160 Matter Stores 300 Matter Capacity 300 Sight Range 16 Terrain Scan Range 16 Terrain Scan Density 310 Armor Coverage 800 Resistance: TH 10 Evasion (%) 42 Targeting Accuracy 10 Recoil Reduction 2 Item Schematics ----------------- None Robot Schematics ------------------ None Fabricated ------------ Nothing Repaired ---------- Nothing Studied --------- None Alien Tech Used ----------------- None Achievements -------------- None Challenges ------------ None RPGLIKE | -11 -10 -10 --------- Run | Yrd Mat Sub Levels Raised 2 | . 2 . XP Earned 7445 | 3000 3045 1400 XP Spent 5470 | 2970 2500 . Upgrades 12 | 10 2 . Propulsion Slot 1 | 1 . . Utility Slot 4 | 2 2 . Weapon Slot 1 | 1 . . Heat Dissipation 1 | 1 . . Mass Support 1 | 1 . . Inventory Capacity 1 | 1 . . Terrain Scan Density 3 | 3 . . Protomatter Created 261 | . 43 218 Integrity Restored 782 | . 128 654 Core 782 | . 128 654 Protomatter Decayed . | . . . Game ------ Seed CoolingLongswordJammer Manual? 0 Play Time 00:51:33 Cumulative 163.6 hours Start 2026.03.02 @ 16:57:02 End 2026.03.03 @ 16:17:15 Sessions 3 Manual Loads 0 Difficulty Rogue Special Mode Winter2019/RPGLIKE Game No. 103 Rogue 103 Adventurer 0 Explorer 0 Win Type - Total 1 Types 0/0/0/1/0/0/0/0/0/0 Lore% 69 Gallery% 47 Achievement% 48 Wizard Run 0 Options --------- Layout 0 ASCII 0 Keyboard 0 Movement Mouse Keybinds 0 Fullscreen 2 Font 24/Smallcaps Map View 76x50 Zoom Use 0% Tactical HUD 1 Map Filters NONE Filters NONE Steam 1 RUN: cd4553ea-c05d-4118-9a67-b6a4869c5224